bitfinex-derivatives/quotes_ETHF0:USTF0_20250903
["timestamp","ask_amount","ask_price","bid_price","bid_amount"]
[1756907073155,0.287,4423.0,4422.9,4.0]
[1756907073558,0.9359,4424.1,4422.9,4.0]
[1756907073763,0.9359,4424.1,4424.0,3.2078]
[1756907073953,1.2229,4424.1,4423.5,3.2078]
[1756907074756,1.21092654,4423.9,4422.9,2.42815099]
[1756907074959,0.9359,4423.7,4422.9,2.42815099]
[1756907075159,0.3543,4423.5,4422.9,2.42815099]
[1756907075364,0.287,4423.4,4422.9,2.42815099]
[1756907075660,0.9359,4423.3,4422.9,2.42815099]
[1756907075860,0.9359,4423.1,4422.9,2.42815099]
[1756907076055,0.286,4423.0,4422.9,2.42815099]
[1756907076657,1.21092654,4424.0,4422.9,6.42815099]
[1756907076860,0.286,4423.9,4423.4,3.2078]
[1756907077261,0.9359,4423.8,4423.4,3.2078]
[1756907077555,0.286,4423.9,4423.4,3.2078]
[1756907077762,32.572,4424.3,4423.5,4.0]
[1756907077958,32.572,4424.3,4424.2,3.2078]
[1756907078167,32.857,4424.3,4424.2,3.2078]
[1756907078357,32.857,4424.3,4424.2,7.2078]
[1756907078960,32.857,4424.3,4424.2,3.2078]
[1756907079167,33.7929,4424.3,4424.2,40.8]
[1756907079365,0.9359,4424.2,4423.6,3.2078]
[1756907079555,32.857,4424.3,4422.9,2.42815099]
[1756907079556,32.572,4424.3,4424.1,3.2078]
[1756907079866,0.285,4424.2,4424.1,3.2078]
[1756907080454,0.285,4424.2,4424.1,44.0078]
[1756907080657,1.2209,4424.2,4424.1,44.0078]
[1756907081362,0.285,4424.2,4424.1,44.0078]
[1756907081568,1.2209,4424.2,4424.1,40.8]
[1756907082065,1.2209,4424.2,4423.5,3.2078]
[1756907082066,1.0772,4424.1,4423.5,3.2078]
[1756907082266,1.21092654,4424.0,4423.5,3.2078]
[1756907082559,33.78392654,4423.9,4423.5,3.2078]
[1756907082756,1.0772,4423.7,4423.0,3.2078]
[1756907083156,1.0772,4423.7,4423.1,40.8]
[1756907083358,0.284,4423.9,4423.6,3.2078]
[1756907083560,0.284,4423.9,4423.7,4.0]
[1756907085255,0.284,4423.9,4423.8,2.42815099]
[1756907085563,0.5,4425.3,4423.8,6.63835305]
[1756907085765,0.5,4425.3,4425.2,3.2078]
[1756907086260,0.5,4425.3,4425.2,7.2078]
[1756907086462,0.5,4425.3,4425.2,48.0078]
[1756907087471,0.5,4425.3,4425.2,44.0078]
[1756907088564,0.783,4425.3,4425.2,44.0078]
[1756907089366,1.8602,4425.3,4425.2,44.0078]
[1756907089566,0.5,4425.3,4425.2,44.0078]
[1756907089765,0.5,4425.3,4425.2,48.0078]
[1756907090270,0.5,4425.3,4425.2,50.43595099]
[1756907090669,0.5,4425.3,4425.2,50.71795099]
[1756907091375,0.5,4425.3,4425.2,46.71795099]
[1756907091669,0.5,4425.3,4425.2,46.43595099]
[1756907092470,1.5772,4425.3,4425.2,46.43595099]
[1756907093464,1.8582,4425.3,4425.2,46.43595099]
[1756907093677,0.781,4425.3,4425.2,46.43595099]
[1756907093871,0.5,4425.3,4425.2,46.43595099]
[1756907094177,0.781,4425.3,4425.2,46.43595099]
[1756907094672,5.8582,4425.3,4425.2,46.43595099]
[1756907094875,5.8582,4425.3,4425.2,5.63595099]
[1756907095076,5.8582,4425.3,4425.2,2.42815099]
[1756907095573,1.0772,4425.2,4424.2,3.2078]
[1756907095765,1.0772,4424.8,4424.2,3.2078]
[1756907095967,1.0772,4424.8,4423.7,3.2078]
[1756907096177,0.5,4425.3,4423.8,1.0341]
[1756907096367,0.5,4425.3,4423.3,41.1899]
[1756907096368,0.28,4425.2,4424.4,3.2078]
[1756907096568,1.0772,4425.1,4424.4,3.2078]
[1756907097166,1.0772,4425.1,4423.9,3.2078]
[1756907097772,1.0772,4425.1,4424.0,1.0341]
[1756907097980,0.28,4425.0,4424.0,1.0341]
[1756907098471,3.2078,4424.8,4424.0,1.0341]
[1756907098871,3.2078,4424.8,4424.0,3.46225099]
[1756907099067,1.0772,4424.7,4424.0,2.42815099]
[1756907099273,1.5016,4424.7,4424.0,2.42815099]
[1756907099974,1.0772,4424.6,4424.0,2.42815099]
[1756907100180,0.279,4424.5,4424.0,2.42815099]
[1756907100474,3.2078,4424.1,4422.9,0.6973]
[1756907100679,3.2078,4423.1,4422.0,3.2078]
[1756907100977,0.279,4423.0,4422.1,40.8]
[1756907101172,3.2078,4422.3,4422.1,40.8]
[1756907101373,0.279,4422.2,4422.1,40.8]
[1756907101769,3.2078,4423.5,4422.1,40.8]
[1756907101971,0.28,4423.4,4422.1,40.8]
[1756907102173,5.17763943,4423.7,4422.1,40.8]
[1756907102174,3.2078,4423.1,4422.1,40.8]
[1756907102386,4.2419,4422.4,4421.4,3.2078]
[1756907102577,5.17763943,4422.1,4421.0,1.0341]
[1756907102786,4.2419,4421.2,4420.3,1.0341]
[1756907102977,0.279,4421.1,4420.3,41.8341]
[1756907103276,0.279,4421.0,4420.4,1.0341]
[1756907103482,0.279,4421.0,4420.3,40.8]
[1756907103777,5.17763943,4420.5,4419.9,0.201]
[1756907103982,3.2078,4420.0,4419.9,0.201]
[1756907104280,4.2419,4420.0,4418.6,4.2419]
[1756907104575,3.2078,4419.5,4418.6,4.2419]
[1756907104784,1.0341,4420.0,4418.7,40.8]
[1756907104785,3.2078,4420.0,4418.7,40.8]
[1756907104970,0.279,4419.9,4418.8,1.0341]
[1756907105175,0.279,4419.9,4419.2,1.0341]
[1756907105376,0.279,4419.9,4419.1,3.2078]
[1756907105672,32.57,4420.4,4419.2,1.0341]
[1756907105980,32.57,4420.4,4419.3,1.0341]
[1756907106175,0.279,4420.3,4419.3,1.0341]
[1756907106374,0.269,4420.3,4419.3,1.0341]
[1756907106571,0.279,4420.2,4419.3,1.0341]
[1756907106879,32.57,4420.4,4419.3,1.0341]
[1756907107184,32.57,4420.4,4420.1,1.0341]
[1756907107386,0.279,4420.3,4420.0,0.3899]
[1756907107582,0.279,4420.3,4419.6,3.2078]
[1756907107883,0.279,4420.2,4419.6,3.2078]
[1756907108585,5.17763943,4419.7,4418.8,1.0341]
[1756907108884,3.2078,4419.5,4418.8,1.0341]
[1756907109084,3.2078,4419.5,4418.7,2.42815099]
[1756907109382,3.2078,4419.0,4418.8,1.0341]
[1756907109687,0.278,4418.9,4418.8,1.0341]
[1756907110382,0.278,4418.9,4418.5,40.8]
[1756907110584,0.278,4418.9,4418.6,1.0341]
[1756907110782,0.278,4418.9,4418.5,40.8]
[1756907111087,4.285,4419.5,4418.6,1.0341]
[1756907111391,0.278,4419.4,4418.9,2.42815099]
[1756907111680,0.278,4419.4,4419.0,1.0456]
[1756907112082,0.278,4419.4,4418.9,3.47375099]
[1756907112277,3.4858,4419.4,4419.0,1.0456]
[1756907112487,1.048,4419.1,4418.9,2.42815099]
[1756907112784,3.4858,4419.4,4418.9,2.42815099]
[1756907112785,0.278,4419.0,4418.9,2.42815099]
[1756907112991,3.2078,4419.4,4418.9,2.42815099]
[1756907112992,1.048,4419.3,4418.9,2.42815099]
[1756907113187,1.326,4419.0,4417.8,1.0456]
[1756907113490,3.2078,4418.9,4417.8,1.0456]
[1756907113790,3.2078,4418.2,4417.9,40.8]
[1756907113983,0.277,4418.1,4418.0,1.0456]
[1756907114288,0.277,4418.1,4417.9,40.8]
[1756907114679,9.17763943,4418.0,4417.4,1.0456]
[1756907114880,3.2078,4417.6,4416.7,1.0456]
[1756907115090,3.2078,4417.6,4417.1,40.8]
[1756907115283,0.277,4417.5,4417.2,1.0456]
[1756907115584,0.277,4417.4,4417.2,1.0456]
[1756907115788,0.277,4417.3,4417.2,1.0456]
[1756907115987,0.277,4417.4,4417.2,1.0456]
[1756907116190,32.7044,4418.8,4417.2,1.0456]
[1756907116487,32.7044,4418.8,4418.1,1.0456]
[1756907116681,32.7044,4418.8,4418.0,3.2078]
[1756907116682,1.325,4418.7,4418.0,3.2078]
[1756907116888,1.325,4418.7,4418.0,4.2534]
[1756907117488,35.9122,4418.8,4418.5,4.2534]
[1756907117489,0.276,4418.6,4418.5,4.2534]
[1756907117980,0.276,4418.6,4418.5,3.2078]
[1756907118182,0.276,4418.6,4417.9,40.8]
[1756907118382,1.048,4418.5,4417.9,40.8]
[1756907118582,3.2078,4418.3,4417.9,40.8]
[1756907118784,1.048,4418.1,4417.9,40.8]
[1756907118984,0.276,4418.2,4417.9,40.8]
[1756907119191,1.048,4418.1,4417.2,2.42815099]
[1756907119384,1.048,4417.5,4417.2,2.42815099]
[1756907119583,1.048,4417.3,4417.2,2.42815099]
[1756907119888,3.2078,4417.6,4417.2,2.42815099]
[1756907120081,1.324,4417.5,4417.2,2.42815099]
[1756907120283,0.276,4417.5,4417.2,2.42815099]
[1756907120684,0.276,4417.4,4417.2,2.42815099]
[1756907120885,1.048,4417.3,4417.2,2.42815099]
[1756907121387,0.276,4417.3,4417.2,3.47375099]
[1756907121588,3.2078,4417.6,4417.2,2.42815099]
[1756907121589,1.048,4417.6,4417.2,2.42815099]
[1756907121789,3.2078,4418.4,4417.2,2.84255099]
[1756907121995,0.275,4418.3,4417.3,1.0456]
[1756907123087,1.323,4418.3,4417.3,1.0456]
[1756907123387,0.275,4418.2,4417.3,1.0456]
[1756907123790,3.2078,4418.4,4417.8,0.4144]
[1756907123986,0.275,4418.3,4417.9,1.0456]
[1756907124187,0.275,4418.2,4417.8,0.4144]
[1756907124388,0.275,4418.1,4417.9,1.0456]
[1756907124588,0.275,4418.0,4417.6,3.2078]
[1756907124894,0.275,4418.0,4417.6,1.0456]
[1756907124895,0.275,4417.9,4417.6,1.0456]
[1756907125091,0.275,4417.9,4417.2,2.42815099]
[1756907125290,0.275,4417.9,4417.8,1.0456]
[1756907125489,0.275,4417.9,4417.8,40.8]
[1756907125691,0.275,4417.9,4417.7,2.42815099]
[1756907125692,1.048,4417.8,4417.7,2.42815099]
[1756907125896,3.2078,4418.0,4417.7,2.42815099]
[1756907126093,3.2078,4418.5,4417.9,3.2078]
[1756907126392,0.275,4418.4,4417.7,2.42815099]
[1756907126593,1.048,4418.1,4417.7,2.42815099]
[1756907126793,4.5654486,4418.2,4417.7,2.42815099]
[1756907127091,0.274,4418.1,4417.7,2.42815099]
[1756907127295,0.274,4418.1,4417.8,1.0456]
[1756907127491,0.274,4418.1,4417.7,2.42815099]
[1756907127697,1.4546,4417.8,4417.7,2.42815099]
[1756907127886,1.4546,4417.8,4416.3,1.0456]
[1756907127887,3.762,4417.7,4416.3,1.0456]
[1756907128087,4.5654486,4416.4,4415.6,1.0456]
[1756907128293,32.887,4416.3,4415.6,1.0456]
[1756907128493,0.275,4416.2,4415.6,1.0456]
[1756907129197,3.2078,4415.9,4415.6,1.0456]
[1756907129393,3.2078,4415.9,4415.5,40.8]
[1756907129394,0.275,4415.8,4415.4,0.4144]
[1756907129597,0.275,4415.8,4415.5,1.0456]
[1756907129794,3.2078,4415.9,4415.5,1.0456]
[1756907130000,30.3804,4416.3,4416.1,1.0456]
[1756907130297,0.275,4416.2,4416.1,1.0456]
[1756907130690,0.275,4416.2,4416.1,5.0456]
[1756907130893,0.275,4417.0,4416.1,4.22644]
[1756907131194,0.274,4417.0,4416.3,3.2078]
[1756907131596,0.274,4417.0,4416.8,3.2078]
[1756907131793,32.616,4417.7,4416.8,3.2078]
[1756907131992,32.616,4417.7,4417.6,3.0954]
[1756907132196,32.89,4417.7,4417.6,3.0954]
[1756907132393,32.616,4417.7,4417.1,3.2078]
[1756907132594,1.048,4418.3,4417.6,3.2078]
[1756907132801,1.2103667,4419.3,4418.2,3.2078]
[1756907132998,1.2103667,4419.3,4418.4,3.2078]
[1756907132999,0.274,4419.2,4418.4,3.2078]
[1756907133199,0.274,4419.2,4419.0,3.2078]
[1756907133499,1.048,4419.1,4419.0,3.2078]
[1756907133696,1.4546,4419.1,4418.4,3.2078]
[1756907133903,1.048,4419.7,4419.0,3.2078]
[1756907134105,0.275,4419.6,4419.0,3.2078]
[1756907134496,1.048,4419.5,4419.0,3.2078]
[1756907134698,1.048,4420.1,4419.0,3.2078]
[1756907134903,1.048,4419.9,4419.3,3.2078]
[1756907135198,0.4066,4419.8,4419.0,3.2078]
[1756907135402,1.6169667,4420.5,4419.5,3.2078]
[1756907135600,1.6169667,4420.5,4419.4,2.42815099]
[1756907135601,0.275,4420.4,4420.0,3.2078]
[1756907135896,1.323,4420.4,4420.0,3.2078]
[1756907136201,0.275,4420.4,4419.5,3.2078]
[1756907136397,1.048,4419.9,4419.4,2.42815099]
[1756907136599,1.048,4419.7,4419.4,2.42815099]
[1756907136897,1.61456873,4419.7,4418.2,3.2078]
[1756907137100,36.889,4419.8,4418.2,4.2534]
[1756907137101,1.21273592,4419.3,4418.2,4.2534]
[1756907137299,1.21273592,4419.5,4418.3,40.8]
[1756907137495,0.275,4419.4,4419.0,3.2078]
[1756907137702,3.2078,4419.1,4418.3,44.0078]
[1756907137896,1.323,4419.0,4418.3,40.8]
[1756907138097,3.2078,4418.6,4417.7,3.2078]
[1756907138298,1.323,4418.5,4417.7,3.2078]
[1756907138598,0.275,4418.5,4417.8,40.8]
[1756907139100,0.275,4418.5,4417.7,3.2078]
[1756907139295,1.048,4417.8,4416.0,3.2078]
[1756907139492,1.21407192,4417.3,4416.8,3.2078]
[1756907139699,0.275,4417.2,4417.0,1.0456]
[1756907139898,32.612,4417.7,4417.0,1.0456]
[1756907140201,32.612,4417.7,4417.6,1.0456]
[1756907140505,32.887,4417.7,4417.6,1.0456]
[1756907140703,32.612,4417.7,4417.6,5.0456]
[1756907140901,32.887,4417.7,4417.6,45.8456]
[1756907141098,32.887,4417.7,4417.6,41.8456]
[1756907141304,32.887,4417.7,4417.6,40.8]
[1756907141500,32.887,4417.7,4417.6,41.8456]
[1756907142200,1.21407192,4418.9,4417.6,45.8456]
[1756907142404,0.275,4418.8,4418.0,3.2078]
[1756907142792,1.48907192,4418.8,4417.6,40.8]
[1756907142996,3.2078,4417.8,4417.6,40.8]
[1756907143198,1.21407192,4418.4,4417.6,40.8]
[1756907143400,0.275,4418.3,4417.7,1.0904]
[1756907143596,0.275,4418.2,4417.6,44.0078]
[1756907144402,0.275,4418.2,4416.3,1.0904]
[1756907144403,1.0449,4417.7,4416.3,1.0904]
[1756907144706,1.0449,4417.7,4415.9,3.2078]
[1756907144707,1.4961,4417.0,4415.9,3.2078]
[1756907144899,34.10207192,4416.9,4416.0,40.8]
[1756907145106,3.2078,4416.6,4416.0,40.8]
[1756907145402,1.0449,4416.4,4416.0,40.8]
[1756907145596,0.274,4416.5,4416.0,40.8]
[1756907145795,1.0449,4416.4,4416.0,40.8]
[1756907145995,33.82807192,4416.9,4416.0,40.8]
[1756907146306,32.614,4416.9,4416.4,3.2078]
[1756907146505,1.0449,4416.7,4416.4,3.2078]
[1756907146705,0.274,4416.8,4416.0,40.8]
[1756907146706,1.0449,4416.4,4416.0,40.8]
[1756907146901,0.274,4416.3,4416.0,40.8]
[1756907147096,0.274,4416.2,4416.0,40.8]
[1756907147308,33.6589,4416.9,4416.1,3.2078]
[1756907147499,0.274,4416.8,4416.1,3.2078]
[1756907147799,33.6589,4416.9,4416.1,3.2078]
[1756907148001,32.614,4416.9,4416.8,4.2982]
[1756907148198,32.887,4416.9,4416.8,3.2078]
[1756907148804,0.273,4416.9,4416.8,8.2982]
[1756907149107,7.4808,4416.9,4415.8,1.0904]
[1756907149309,3.4808,4416.9,4415.9,40.8]
[1756907149602,3.2078,4416.9,4415.9,40.8]
[1756907149807,1.0449,4416.7,4415.9,40.8]
[1756907150416,33.6639,4416.7,4415.9,40.8]
[1756907150703,1.0449,4416.2,4415.3,3.2078]
[1756907150908,0.273,4416.1,4415.3,3.2078]
[1756907151105,0.273,4416.1,4414.8,3.2078]
[1756907151302,0.273,4416.1,4414.9,40.8]
[1756907151497,3.2078,4415.6,4414.9,40.8]
[1756907151710,0.273,4415.5,4414.9,40.8]
[1756907152405,1.0449,4415.4,4414.8,3.2078]
[1756907152905,1.4961,4414.9,4413.6,40.8]
[1756907153105,32.622,4414.8,4413.6,40.8]
[1756907153308,0.273,4414.7,4414.1,3.2078]
[1756907153609,0.273,4414.7,4413.6,44.0078]
[1756907154203,1.0449,4414.3,4413.6,44.0078]
[1756907154399,0.273,4414.2,4413.6,44.0078]
[1756907154605,3.2078,4414.4,4413.6,44.0078]
[1756907154800,1.0449,4414.2,4413.5,3.2078]
[1756907155010,0.272,4414.1,4413.5,3.2078]
[1756907155204,0.272,4414.1,4413.5,4.2982]
[1756907155507,1.3169,4414.1,4413.6,40.8]
[1756907155806,0.272,4414.1,4413.6,40.8]
[1756907156309,3.2078,4414.7,4414.0,3.2078]
[1756907156509,0.272,4414.6,4413.9,3.2078]
[1756907157907,1.0449,4414.5,4413.9,3.2078]
[1756907158412,0.272,4414.4,4413.9,3.2078]
[1756907158706,1.0449,4414.3,4413.9,3.2078]
[1756907158912,32.622,4414.8,4414.0,1.0904]
[1756907159112,0.271,4414.7,4414.5,3.2078]
[1756907159410,32.622,4414.8,4414.5,3.2078]
[1756907159620,32.622,4414.8,4414.6,1.0904]
[1756907159808,32.622,4414.8,4414.5,3.2078]
[1756907159809,0.271,4414.7,4414.5,3.2078]
[1756907160109,0.271,4414.7,4414.0,1.0904]
[1756907160807,0.271,4414.6,4414.5,1.0904]
[1756907161117,32.622,4414.8,4414.5,0.9063]
[1756907161315,0.271,4414.7,4414.5,0.3643]
[1756907161516,0.271,4414.7,4414.4,3.2078]
[1756907161517,32.633,4416.1,4414.6,44.8]
[1756907161716,32.633,4416.1,4415.7,3.2078]
[1756907161717,1.0449,4416.0,4415.7,3.2078]
[1756907162014,0.271,4415.9,4415.7,3.2078]
[1756907162214,1.0449,4416.5,4415.7,3.2078]
[1756907162415,0.271,4416.4,4416.2,3.2078]
[1756907162616,1.3159,4416.3,4416.2,3.2078]
[1756907162818,1.7671,4416.3,4415.4,3.2078]
[1756907163011,33.6789,4417.1,4415.9,3.2078]
[1756907163214,0.271,4416.9,4415.9,3.2078]
[1756907163611,33.6789,4417.1,4415.9,3.2078]
[1756907163814,0.271,4416.9,4416.4,3.2078]
[1756907164012,1.0449,4417.8,4416.4,3.2078]
[1756907164222,0.4512,4419.1,4417.7,3.2078]
[1756907164423,0.271,4419.0,4418.8,3.2078]
[1756907164712,1.0449,4418.9,4418.3,3.2078]
[1756907165220,1.0449,4419.7,4418.3,3.2078]
[1756907165412,0.271,4419.6,4418.8,3.2078]
[1756907166117,0.271,4419.6,4416.5,0.40748]
[1756907166118,0.271,4419.5,4419.3,3.2078]
[1756907166318,0.271,4419.4,4419.3,3.2078]
[1756907166814,1.3159,4419.4,4419.3,3.2078]
[1756907167021,33.6779,4420.1,4419.3,3.2078]
[1756907167322,0.4512,4421.2,4419.8,3.2078]
[1756907167517,0.271,4421.1,4419.8,3.2078]
[1756907167714,0.271,4421.1,4419.9,40.8]
[1756907167911,0.4512,4421.2,4420.3,3.2078]
[1756907168113,1.0449,4421.3,4420.3,3.2078]
[1756907168320,32.626,4421.5,4419.9,40.8]
[1756907168321,0.271,4421.2,4420.8,3.2078]
[1756907168927,1.3159,4421.2,4420.8,3.2078]
[1756907169222,1.0449,4421.1,4420.8,3.2078]
[1756907169615,1.0449,4421.1,4420.3,3.2078]
[1756907169816,0.27,4421.0,4420.3,3.2078]
[1756907170211,32.626,4421.5,4420.3,3.2078]
[1756907170421,0.27,4421.4,4420.8,3.2078]
[1756907171117,1.0449,4421.3,4420.8,3.2078]
[1756907171322,1.0449,4421.0,4420.1,3.2078]
[1756907171527,1.0449,4420.8,4420.1,3.2078]
[1756907171820,0.271,4420.9,4420.1,3.2078]
[1756907172527,1.4433,4420.5,4419.9,40.8]
[1756907172823,1.031,4420.2,4419.1,3.2078]
[1756907173026,0.4123,4420.5,4419.1,3.2078]
[1756907173223,1.031,4420.3,4419.6,3.2078]
[1756907173925,1.031,4420.3,4419.2,40.8]
[1756907173926,0.27,4420.4,4419.2,40.8]
[1756907174220,0.27,4420.3,4420.1,3.2078]
[1756907174422,0.27,4420.6,4420.1,3.2078]
[1756907174625,0.27,4420.5,4420.2,0.22621]
[1756907174924,0.27,4420.8,4420.2,0.22621]
[1756907175127,0.27,4420.8,4420.7,3.2078]
[1756907175718,32.626,4421.5,4420.7,7.2078]
[1756907176028,0.27,4422.9,4421.4,4.56929602]
[1756907176321,0.27,4422.9,4422.1,3.2078]
[1756907176519,0.27,4422.9,4422.6,3.2078]
[1756907176716,1.031,4422.8,4422.7,40.8]
[1756907176916,1.031,4422.8,4422.1,3.2078]
[1756907177119,1.031,4422.8,4421.6,3.2078]
[1756907177321,1.4433,4422.6,4421.6,3.2078]
[1756907177523,1.031,4422.5,4421.6,3.2078]
[1756907177720,0.27,4422.4,4421.6,3.2078]
[1756907177916,1.031,4422.5,4421.6,3.2078]
[1756907178123,0.27,4422.4,4421.7,40.8]
[1756907178622,0.27,4422.4,4422.2,3.2078]
[1756907178826,0.27,4422.6,4422.2,3.2078]
[1756907179021,0.27,4423.1,4422.2,3.2078]
[1756907179226,0.27,4423.1,4423.0,3.2078]
[1756907179619,0.4123,4423.8,4423.0,3.2078]
[1756907179927,0.27,4423.7,4422.3,3.2078]
[1756907180123,1.301,4423.6,4422.3,3.2078]
[1756907180631,1.301,4423.6,4422.8,3.2078]
[1756907180825,3.6201,4424.0,4422.8,3.2078]
[1756907180826,0.4123,4424.0,4422.8,3.2078]
[1756907181021,0.27,4423.9,4423.3,3.2078]
[1756907182031,0.27,4423.9,4423.8,3.2078]
[1756907182630,0.27,4423.9,4423.8,40.8]
[1756907183123,0.27,4423.9,4423.8,44.0078]
[1756907183519,1.301,4423.9,4423.8,40.8]
[1756907183727,1.031,4423.8,4422.8,3.2078]
[1756907184024,0.27,4423.7,4422.8,3.2078]
[1756907184224,0.27,4423.7,4422.9,40.8]
[1756907184622,4.34851804,4423.3,4422.3,3.2078]
[1756907184830,1.301,4423.2,4422.3,3.2078]
[1756907185329,1.031,4422.7,4422.4,40.8]
[1756907185524,0.269,4422.6,4422.4,40.8]
[1756907185723,1.031,4422.5,4422.3,3.2078]
[1756907185922,0.6813,4422.6,4422.3,3.2078]
[1756907186232,1.031,4422.5,4422.3,3.2078]
[1756907186425,32.587,4422.5,4422.3,3.2078]
[1756907186728,32.586,4422.9,4422.3,3.2078]
[1756907186928,0.4123,4424.0,4422.8,3.2078]
[1756907187233,0.4123,4424.0,4421.5,0.40702]
[1756907187234,0.269,4423.9,4423.5,3.2078]
[1756907187528,0.269,4423.8,4423.5,3.2078]
[1756907187728,1.031,4425.9,4423.7,3.93621804]
[1756907188037,32.585,4425.6,4425.0,3.2078]
[1756907188229,0.269,4425.2,4425.0,3.2078]
[1756907188420,32.585,4425.6,4425.0,3.2078]
[1756907188620,0.269,4425.2,4425.0,3.2078]
[1756907188828,32.585,4425.6,4425.0,3.2078]
[1756907189027,0.269,4425.5,4425.0,3.2078]
[1756907189419,34.0263,4426.8,4425.0,3.2078]
[1756907189929,0.4123,4427.5,4425.2,3.93621804]
[1756907190134,0.269,4427.4,4427.3,3.2078]
[1756907190531,1.031,4427.4,4426.7,3.2078]
[1756907190831,1.031,4427.4,4425.4,3.2078]
[1756907190832,0.269,4427.3,4425.4,3.2078]
[1756907191031,1.031,4426.6,4425.4,3.2078]
[1756907191334,0.27,4426.5,4425.9,3.2078]
[1756907191534,1.031,4426.6,4425.9,3.2078]
[1756907191728,0.269,4426.5,4425.9,3.2078]
[1756907192032,1.031,4427.2,4426.3,3.2078]
[1756907192237,0.269,4427.1,4426.3,3.2078]
[1756907192430,1.031,4427.2,4426.3,3.2078]
[1756907192630,0.269,4427.1,4426.4,40.8]
[1756907192825,1.031,4426.9,4426.4,40.8]
[1756907193130,3.93621804,4426.8,4426.4,40.8]
[1756907193330,4.34851804,4426.8,4425.8,3.2078]
[1756907193528,1.031,4426.7,4425.8,3.2078]
[1756907193835,3.2078,4426.5,4425.9,40.8]
[1756907194137,0.269,4426.4,4425.9,40.8]
[1756907194334,1.031,4426.4,4425.9,40.8]
[1756907194632,4.96721804,4427.1,4426.3,3.2078]
[1756907194828,4.96721804,4427.1,4425.8,3.2078]
[1756907195025,3.93621804,4426.6,4425.8,3.2078]
[1756907195330,1.031,4426.5,4425.8,3.2078]
[1756907195931,0.4123,4426.8,4425.9,40.8]
[1756907196234,0.268,4426.7,4426.3,3.2078]
[1756907196431,32.567,4427.4,4426.3,3.2078]
[1756907196629,1.031,4427.3,4426.3,3.2078]
[1756907196824,1.031,4427.1,4426.3,3.2078]
[1756907197025,4.2388,4427.1,4426.3,3.2078]
[1756907197530,0.268,4427.0,4426.3,3.2078]
[1756907197824,3.93621804,4427.2,4426.3,3.2078]
[1756907198029,0.268,4427.1,4426.3,3.2078]
[1756907198224,1.031,4427.2,4426.3,3.2078]
[1756907198432,0.268,4427.1,4426.8,3.2078]
[1756907198628,3.93621804,4427.7,4426.8,3.2078]
[1756907199229,1.2,4428.0,4427.3,3.2078]
[1756907199431,0.269,4427.9,4427.2,3.2078]
[1756907199631,1.2,4428.0,4427.7,3.2078]
[1756907199831,0.269,4427.9,4427.7,3.2078]
[1756907200128,1.2,4428.0,4427.7,3.2078]
[1756907200534,1.2,4428.0,4427.8,4.0]
[1756907200932,1.2,4428.0,4427.9,4.0]
[1756907201135,0.17,4428.9,4427.8,4.0]
[1756907201326,0.17,4428.9,4428.8,3.2078]
[1756907201531,0.17,4428.9,4428.8,44.0078]
[1756907201836,36.59421804,4430.2,4428.8,44.0078]
[1756907201837,0.1,4430.2,4428.8,44.0078]
[1756907202041,0.6785,4431.7,4430.1,7.14401804]
[1756907202228,1.0236,4432.1,4431.4,3.2078]
[1756907202434,0.27,4432.4,4431.9,3.2078]
[1756907202634,1.0236,4433.0,4431.9,3.2078]
[1756907202930,1.0236,4434.4,4432.9,3.2078]
[1756907203136,0.4095,4435.2,4433.9,3.2078]
[1756907203332,1.0236,4434.6,4434.4,3.2078]
[1756907203539,3.2078,4437.3,4434.4,3.2078]
[1756907203736,3.93621804,4437.0,4436.0,3.2078]
[1756907203933,3.2078,4437.3,4436.0,3.2078]
[1756907204129,0.22339603,4437.2,4436.0,11.14401804]
[1756907204328,1.2,4438.0,4437.1,44.0078]
[1756907204537,1.0236,4437.8,4437.1,40.8]
[1756907204940,1.37675366,4438.0,4437.1,40.8]
[1756907205140,1.2,4438.0,4437.7,3.2078]
[1756907206237,1.2,4438.0,4437.1,40.8]
[1756907206238,1.2,4438.0,4437.1,44.0078]
[1756907206448,3.2078,4437.8,4437.1,44.0078]
[1756907206744,1.2,4438.0,4437.6,3.2078]
[1756907207141,1.2,4438.0,4437.1,44.0078]
[1756907207347,1.2,4438.0,4437.6,3.2078]
[1756907208640,0.17,4438.9,4437.7,4.274]
[1756907208842,0.00593034,4441.0,4438.8,8.75404369]
[1756907209142,0.00593034,4441.0,4440.1,3.2078]
[1756907209737,0.00593034,4441.0,4440.1,3.4818]
[1756907209936,0.00593034,4441.0,4440.3,40.8]
[1756907210135,0.00593034,4441.0,4440.3,45.074]
[1756907210332,0.00593034,4441.0,4440.3,44.8]
[1756907210545,0.00593034,4441.0,4440.3,41.074]
[1756907210941,0.00593034,4441.0,4440.3,45.074]
[1756907211445,0.00593034,4441.0,4440.3,41.074]